fUSD/lending_fUSD_20251219
["ID","MTS","AMOUNT","RATE_DAILY","PERIOD"]
[399075838,1766103223674,48.00827411,0.00015371,2]
[399075839,1766103230596,500.0,0.00015331,2]
[399075869,1766103286192,1940.475114,0.00015344,2]
[399075870,1766103294169,310.1,0.00014696,2]
[399075876,1766103336111,500.0,0.00016,3]
[399075922,1766103451158,-212.37368558,0.00015422,2]
[399075923,1766103451210,-1200.0,0.0001543,2]
[399075924,1766103451253,-300.0,0.0001543,2]
[399075925,1766103451296,-300.0,0.0001543,2]
[399075926,1766103451336,-500.0,0.00015431,2]
[399075927,1766103451380,-500.0,0.00015431,2]
[399075928,1766103451418,-500.0,0.00015431,2]
[399075929,1766103451458,-500.0,0.00015431,2]
[399075930,1766103451496,-500.0,0.00015431,2]
[399075931,1766103451532,-475.26262884,0.00015431,2]
[399075932,1766103451857,-24.73737116,0.00015431,2]
[399075933,1766103460663,-500.0,0.00015431,2]
[399075934,1766103460698,-500.0,0.00015431,2]
[399075935,1766103460735,-500.0,0.00015431,2]
[399075936,1766103460772,-500.0,0.00015431,2]
[399075937,1766103460809,-500.0,0.00015431,2]
[399075938,1766103460846,-500.0,0.00015431,2]
[399075939,1766103460883,-212.37368558,0.00015431,2]
[399075940,1766103461088,-3575.26262884,0.00015431,2]
[399075943,1766103476947,-495.36111443,0.0001543,2]
[399075944,1766103476990,-3501.96014019,0.00015431,2]
[399075945,1766103477049,-2005.36749076,0.00015431,2]
[399075990,1766103546695,102.51291495,0.00014729,2]
[399075991,1766103546728,2853.08802895,0.00014729,2]
[399075992,1766103546805,-10000.01,0.00014729,2]
[399075996,1766103553694,-10000.01,0.00014729,2]
[399076007,1766103573717,865.0,0.00023,120]
[399076030,1766103638142,-272.0,0.00014729,2]
[399076031,1766103638761,-300.0,0.00014729,2]
[399076032,1766103638803,-299.90139735,0.00014729,2]
[399076033,1766103638844,-512.1290561,0.00014729,2]
[399076034,1766103638883,-169.99,0.00014746,2]
[399076035,1766103638926,-286.23798223,0.00015013,2]
[399076036,1766103638972,-1393.04357424,0.0001543,2]
[399076037,1766103639013,-192.30137816,0.00015431,2]
[399076038,1766103639053,-537.48288693,0.00015431,2]
[399076039,1766103639091,-195.0,0.00015476,2]
[399076040,1766103639129,-300.0,0.00015476,2]
[399076041,1766103639169,-197.0,0.00015521,2]
[399076042,1766103639208,-337.83744998,0.00015521,2]
[399076043,1766103639323,-14.16255002,0.00015521,2]
[399076044,1766103639365,-1200.0,0.00015521,2]
[399076045,1766103639405,-300.0,0.00015521,2]
[399076046,1766103639445,-200.0,0.00015522,2]
[399076047,1766103639489,-151.0,0.00015522,2]
[399076048,1766103639530,-151.0,0.00015522,2]
[399076049,1766103639572,-151.0,0.00015522,2]
[399076050,1766103639613,-151.0,0.00015522,2]
[399076051,1766103639653,-151.0,0.00015522,2]
[399076052,1766103639693,-151.0,0.00015522,2]
[399076053,1766103639732,-151.0,0.00015522,2]
[399076054,1766103639775,-151.0,0.00015522,2]
[399076055,1766103639816,-151.0,0.00015522,2]
[399076056,1766103639858,-151.0,0.00015522,2]
[399076057,1766103639899,-151.0,0.00015522,2]
[399076058,1766103639943,-151.0,0.00015522,2]
[399076059,1766103639983,-151.0,0.00015522,2]
[399076060,1766103640023,-151.0,0.00015522,2]
[399076061,1766103640077,-151.0,0.00015522,2]
[399076062,1766103640125,-151.0,0.00015522,2]
[399076063,1766103640170,-151.0,0.00015522,2]
[399076064,1766103640212,-151.0,0.00015522,2]
[399076065,1766103640253,-151.0,0.00015522,2]
[399076066,1766103640294,-151.0,0.00015522,2]
[399076067,1766103640333,-151.0,0.00015522,2]
[399076068,1766103640372,-78.68489996,0.00015522,2]
[399076069,1766103641586,-86.47765006,0.00013699,2]
[399076070,1766103641651,-216.75234994,0.00013699,2]
[399076071,1766103641699,-72.31510004,0.00015522,2]
[399076072,1766103641739,-151.0,0.00015522,2]
[399076073,1766103641781,-151.0,0.00015522,2]
[399076074,1766103641822,-151.0,0.00015522,2]
[399076075,1766103641865,-151.0,0.00015522,2]
[399076076,1766103641909,-151.0,0.00015522,2]
[399076077,1766103641952,-151.0,0.00015522,2]
[399076078,1766103641993,-151.0,0.00015522,2]
[399076079,1766103642035,-500.0,0.00015522,2]
[399076080,1766103642077,-151.0,0.00015522,2]
[399076081,1766103642118,-305.78070651,0.00015522,2]
[399076082,1766103642164,-151.0,0.00015522,2]
[399076083,1766103642208,-151.0,0.00015522,2]
[399076084,1766103642249,-500.0,0.00015522,2]
[399076085,1766103642293,-574.12855637,0.00015522,2]
[399076086,1766103642334,-500.0,0.00015522,2]
[399076087,1766103642376,-500.0,0.00015522,2]
[399076088,1766103642998,-200.0,0.00015522,2]
[399076090,1766103644597,-242.05657428,0.00015522,2]
[399076091,1766103644704,-57.94342572,0.00015522,2]
[399076092,1766103644742,-500.0,0.00015522,2]
[399076093,1766103644787,-500.0,0.00015522,2]
[399076094,1766103644827,-500.0,0.00015522,2]
[399076095,1766103644869,-200.0,0.00015522,2]
[399076096,1766103644910,-500.0,0.00015522,2]
[399076097,1766103644951,-500.0,0.00015522,2]
[399076098,1766103645184,-4484.12314856,0.00015522,2]
[399076099,1766103646972,-515.87685144,0.00015522,2]
[399076100,1766103647020,-500.0,0.00015522,2]
[399076101,1766103647062,-1315.93567447,0.00015522,2]
[399076102,1766103647102,-500.0,0.00015522,2]
[399076103,1766103647139,-500.0,0.00015522,2]
[399076104,1766103647178,-500.0,0.00015522,2]
[399076105,1766103647216,-500.0,0.00015522,2]
[399076106,1766103647254,-500.0,0.00015522,2]
[399076107,1766103647963,-336.38494818,0.00015522,2]
[399076116,1766103699011,-624.48,0.00015152,2]
[399076117,1766103699055,-500.0,0.00015322,2]
[399076118,1766103699098,-163.61505182,0.00015522,2]
[399076119,1766103699141,-500.0,0.00015522,2]
[399076120,1766103699186,-500.0,0.00015522,2]
[399076121,1766103699227,-500.0,0.00015522,2]
[399076122,1766103699269,-500.0,0.00015522,2]
[399076123,1766103699311,-500.0,0.00015522,2]
[399076124,1766103699352,-500.0,0.00015522,2]
[399076125,1766103699396,-500.0,0.00015522,2]
[399076128,1766103699744,-423.81989636,0.00015522,2]
[399076132,1766103702108,-76.18010364,0.00015522,2]
[399076133,1766103702149,-500.0,0.00015522,2]
[399076134,1766103702188,-500.0,0.00015522,2]
[399076135,1766103702226,-500.0,0.00015522,2]
[399076136,1766103702264,-965.21,0.00015522,2]
[399076137,1766103702304,-191.66299298,0.00015529,2]
[399076138,1766103702343,-500.0,0.00015529,2]
[399076139,1766103702381,-439.46097928,0.00015529,2]
[399076140,1766103702417,-500.0,0.00015529,2]
[399076141,1766103702455,-626.82937332,0.00015529,2]
[399076142,1766103702726,-401.32310156,0.00015529,2]
[399076143,1766103704940,-98.67689844,0.00015529,2]
[399076144,1766103704989,-500.0,0.00015529,2]
[399076145,1766103705036,-500.0,0.00015529,2]
[399076146,1766103705083,-500.0,0.00015529,2]
[399076147,1766103705129,-500.0,0.00015529,2]
[399076148,1766103705177,-500.0,0.00015529,2]
[399076149,1766103705225,-500.0,0.00015529,2]
[399076150,1766103705279,-500.0,0.00015529,2]
[399076151,1766103705332,-515.94557963,0.00015529,2]
[399076152,1766103705381,-500.0,0.00015529,2]
[399076153,1766103705433,-270.76504386,0.00015529,2]
[399076154,1766103705747,-229.23495614,0.00015529,2]
[399076155,1766103707889,-500.0,0.00015529,2]
[399076156,1766103707939,-500.0,0.00015529,2]
[399076157,1766103707992,-500.0,0.00015529,2]
[399076158,1766103708042,-500.0,0.00015529,2]
[399076159,1766103708093,-500.0,0.00015529,2]
[399076160,1766103708143,-500.0,0.00015529,2]
[399076161,1766103708198,-500.0,0.00015529,2]
[399076162,1766103708264,-500.0,0.00015529,2]
[399076163,1766103708328,-500.0,0.00015529,2]
[399076164,1766103708409,-450.0,0.00015529,2]
[399076165,1766103708767,-100.01,0.00015529,2]
[399076205,1766103792169,-1200.0,0.00014992,2]
[399076206,1766103792208,-200.0,0.00014993,2]
[399076207,1766103792247,-207.4,0.00014993,2]
[399076208,1766103792298,-215.0738,0.00014993,2]
[399076209,1766103792341,-223.0315306,0.00014993,2]
[399076210,1766103792378,-231.28369723,0.00014993,2]
[399076211,1766103792417,-239.84119403,0.00014993,2]
[399076212,1766103792455,-248.71531821,0.00014993,2]
[399076213,1766103792494,-257.91778498,0.00014993,2]
[399076214,1766103792528,-267.46074303,0.00014993,2]
[399076215,1766103792696,-854.63314796,0.00015431,2]
[399076216,1766103792881,-1709.26629592,0.00015431,2]
[399076217,1766103794491,-972.64094797,0.00015431,2]
[399076218,1766103794542,-4391.17353981,0.00015431,2]
[399076219,1766103794574,-1217.66292038,0.00015431,2]
[399076220,1766103794584,-151.0,0.00015522,2]
[399076221,1766103794594,-151.0,0.00015522,2]
[399076222,1766103794603,-151.0,0.00015522,2]
[399076223,1766103794613,-500.0,0.00015522,2]
[399076224,1766103794622,-151.0,0.00015522,2]
[399076225,1766103794631,-500.0,0.00015522,2]
[399076226,1766103794640,-151.0,0.00015522,2]
[399076227,1766103794650,-500.0,0.00015522,2]
[399076228,1766103794659,-151.0,0.00015522,2]
[399076229,1766103794668,-483.04639433,0.00015522,2]
[399076230,1766103794677,-151.0,0.00015522,2]
[399076231,1766103794687,-151.0,0.00015522,2]
[399076232,1766103794697,-345.49399752,0.00015522,2]
[399076233,1766103794747,-154.50600248,0.00015522,2]
[399076234,1766103794785,-151.0,0.00015522,2]
[399076235,1766103794821,-158.48137131,0.00015522,2]
[399076236,1766103794861,-500.0,0.00015522,2]
[399076237,1766103794900,-151.0,0.00015522,2]
[399076238,1766103794937,-500.0,0.00015522,2]
[399076239,1766103794976,-151.0,0.00015522,2]
[399076240,1766103795016,-500.0,0.00015522,2]
[399076241,1766103795055,-194.7132083,0.00015522,2]
[399076242,1766103795101,-574.12855637,0.00015522,2]
[399076243,1766103795142,-500.0,0.00015522,2]
[399076244,1766103795181,-500.0,0.00015522,2]
[399076245,1766103795219,-500.0,0.00015522,2]
[399076246,1766103795256,-200.0,0.00015522,2]
[399076247,1766103795296,-250.0,0.00015522,2]
[399076248,1766103795451,-250.0,0.00015522,2]
[399076249,1766103795461,-250.0,0.00015522,2]
[399076250,1766103795472,-255.55242947,0.00015522,2]
[399076251,1766103795482,-250.0,0.00015522,2]
[399076252,1766103795492,-250.0,0.00015522,2]
[399076253,1766103795501,-151.0,0.00015522,2]
[399076254,1766103795511,-151.0,0.00015522,2]
[399076255,1766103795522,-151.0,0.00015522,2]
[399076256,1766103795531,-582.9934841,0.00015522,2]
[399076257,1766103795541,-151.0,0.00015522,2]
[399076258,1766103795550,-151.0,0.00015522,2]
[399076259,1766103795560,-151.0,0.00015522,2]
[399076260,1766103795569,-151.0,0.00015522,2]
[399076261,1766103795578,-240.16817775,0.00015522,2]
[399076262,1766103795588,-151.0,0.00015522,2]
[399076263,1766103795596,-19.2004743,0.00015522,2]
[399076264,1766103795639,-480.7995257,0.00015522,2]
[399076265,1766103795678,-250.0,0.00015522,2]
[399076266,1766103795718,-151.0,0.00015522,2]
[399076267,1766103795755,-209.40437684,0.00015522,2]
[399076268,1766103795794,-500.0,0.00015522,2]
[399076269,1766103795832,-151.0,0.00015522,2]
[399076270,1766103795869,-250.0,0.00015522,2]
[399076271,1766103795908,-500.0,0.00015522,2]
[399076272,1766103795946,-151.0,0.00015522,2]
[399076273,1766103795982,-250.0,0.00015522,2]
[399076274,1766103796020,-500.0,0.00015522,2]
[399076275,1766103796057,-250.0,0.00015522,2]
[399076276,1766103796099,-500.0,0.00015522,2]
[399076277,1766103796137,-250.0,0.00015522,2]
[399076278,1766103796176,-500.0,0.00015522,2]
[399076279,1766103796233,-250.0,0.00015522,2]
[399076280,1766103796272,-500.0,0.00015522,2]
[399076281,1766103796310,-250.0,0.00015522,2]
[399076282,1766103796735,-500.0,0.00015522,2]
[399076283,1766103796774,-500.0,0.00015522,2]
[399076284,1766103796812,-250.0,0.00015522,2]
[399076285,1766103796848,-151.0,0.00015522,2]
[399076286,1766103796885,-500.0,0.00015522,2]
[399076287,1766103796923,-250.0,0.00015522,2]
[399076288,1766103796961,-500.0,0.00015522,2]
[399076289,1766103796999,-250.0,0.00015522,2]
[399076290,1766103797037,-250.0,0.00015522,2]
[399076291,1766103797079,-300.0,0.00015522,2]
[399076292,1766103797118,-427.24916276,0.00015522,2]
[399076293,1766103797186,-500.0,0.00015522,2]
[399076294,1766103797233,-399.99,0.00015529,2]
[399076295,1766103797281,-500.0,0.00015529,2]
[399076296,1766103797329,-500.0,0.00015529,2]
[399076297,1766103797375,-500.0,0.00015529,2]
[399076298,1766103797421,-500.0,0.00015529,2]
[399076299,1766103797466,-500.0,0.00015529,2]
[399076300,1766103797511,-500.0,0.00015529,2]
[399076301,1766103797552,-500.0,0.00015529,2]
[399076302,1766103797594,-500.0,0.00015529,2]
[399076303,1766103797664,-567.48781727,0.00015529,2]
[399076304,1766103797700,-2556.68,0.0001553,2]
[399076305,1766103797733,-1461.38,0.0001553,2]
[399076306,1766103798580,-4655.97,0.0001553,2]
[399076307,1766103798613,-176.47,0.0001553,2]
[399076308,1766103798656,-335.13,0.0001553,2]
[399076309,1766103799308,-368.91884562,0.0001553,2]
[399076310,1766103799843,-5.23959173,0.0001553,2]
[399076311,1766103799871,-500.0,0.0001553,2]
[399076312,1766103799898,-500.0,0.0001553,2]
[399076313,1766103799928,-500.0,0.0001553,2]
[399076314,1766103799953,-200.03,0.0001553,2]
[399076315,1766103799981,-567.48781727,0.0001553,2]
[399076316,1766103800006,-2556.68,0.0001553,2]
[399076317,1766103800032,-1461.38,0.0001553,2]
[399076318,1766103800055,-828.91436546,0.0001553,2]
[399076319,1766103800102,-4655.97,0.0001553,2]
[399076320,1766103800136,-511.6,0.0001553,2]
[399076321,1766103800168,-335.13,0.0001553,2]
[399076322,1766103800192,-935.97937992,0.0001553,2]
[399076323,1766103800201,-8393.77062008,0.0001553,2]
[399076324,1766103801275,-10000.01,0.0001553,2]
[399076325,1766103801408,-10000.01,0.0001553,2]
[399076326,1766103801550,-10000.01,0.0001553,2]
[399076329,1766103805800,-10000.01,0.0001553,2]
[399076330,1766103805837,-10000.01,0.0001553,2]
[399076331,1766103805865,-10000.01,0.0001553,2]
[399076332,1766103806754,-500.0,0.00015086,2]
[399076333,1766103807327,-1352.42,0.00015086,2]
[399076334,1766103807391,-7295.17,0.0001553,2]
[399076335,1766103807539,-10000.01,0.0001553,2]
[399076336,1766103807667,-10000.01,0.0001553,2]
[399076337,1766103807803,-10000.01,0.0001553,2]
[399076338,1766103812534,433.4409751,0.00015431,2]
[399076339,1766103815668,-150.99,0.0001553,2]
[399076340,1766103815693,-15.67,0.0001553,2]
[399076342,1766103817793,-200.0,0.0001553,2]
[399076343,1766103819351,-309.56231565,0.0001553,2]
[399076344,1766103841253,300.0,0.00015529,2]
[399076361,1766103886181,2500.0,0.0001543,2]
[399076362,1766103890552,-516.0331568,0.0001553,2]
[399076363,1766103894203,-244.57579678,0.0001553,2]
[399076364,1766103897693,-237.49250503,0.0001553,2]
[399076365,1766103898722,-254.0336321,0.0001553,2]
[399076366,1766103901241,300.0,0.00015529,2]
[399076367,1766103901283,300.0,0.00015529,2]
[399076368,1766103901324,1200.0,0.00015529,2]
[399076369,1766103901355,-325.79415652,0.0001553,2]
[399076370,1766103902736,-169.26868756,0.0001553,2]
[399076389,1766103905445,-13.41101879,0.0001553,2]
[399076390,1766103905479,-156.50700539,0.0001553,2]
[399076404,1766103907557,-222.79597456,0.0001553,2]
[399076405,1766103911139,-120.69702005,0.0001553,2]
[399076406,1766103911175,-161.72849911,0.0001553,2]
[399076407,1766103913657,-198.57448084,0.0001553,2]
[399076409,1766103918241,-139.69702005,0.0001553,2]
[399076410,1766103918279,-168.04244189,0.0001553,2]
[399076411,1766103919999,-331.95755811,0.0001553,2]
[399076412,1766103920052,-530.64943406,0.0001553,2]
[399076413,1766103920094,-1381.44641675,0.0001553,2]
[399076414,1766103920139,-1000.0,0.00015531,2]
[399076415,1766103920184,-1322.814,0.00015531,2]
[399076417,1766103920481,-300.0,0.00015531,2]
[399076418,1766103920597,-5832.84420706,0.00015531,2]
[399076419,1766103920629,-10000.01,0.00015531,2]
[399076420,1766103920671,-10000.01,0.00015531,2]
[399076421,1766103920837,-10000.01,0.00015531,2]
[399076423,1766103920982,-10000.01,0.00015531,2]
[399076424,1766103921228,-10000.01,0.00015531,2]
[399076426,1766103921371,-10000.01,0.00015531,2]
[399076427,1766103921497,-10000.01,0.00015531,2]
[399076430,1766103922288,-207.38065999,0.00015531,2]
[399076431,1766103925635,-10000.01,0.00015531,2]
[399076432,1766103928796,-10000.01,0.00015531,2]
[399076433,1766103928956,-10000.01,0.00015531,2]
[399076434,1766103929106,-10000.01,0.00015531,2]
[399076435,1766103929248,-10000.01,0.00015531,2]
[399076436,1766103929411,-10000.01,0.00015531,2]
[399076437,1766103929565,-10000.01,0.00015531,2]
[399076438,1766103929701,-10000.01,0.00015531,2]
[399076439,1766103930831,-2988.94715175,0.00015531,2]
[399076440,1766103930875,-151.0,0.00015531,2]
[399076441,1766103930940,-151.0,0.00015531,2]
[399076442,1766103930987,-151.0,0.00015531,2]
[399076443,1766103931036,-151.0,0.00015531,2]
[399076444,1766103931088,-152.375694,0.00015531,2]
[399076445,1766103931132,-151.0,0.00015531,2]
[399076446,1766103931174,-151.0,0.00015531,2]
[399076447,1766103931216,-151.0,0.00015531,2]
[399076448,1766103931265,-151.0,0.00015531,2]
[399076449,1766103931306,-151.0,0.00015531,2]
[399076450,1766103931947,-151.0,0.00015531,2]
[399076451,1766103931994,-151.0,0.00015531,2]
[399076452,1766103932036,-151.0,0.00015531,2]
[399076453,1766103932654,-93.3643085,0.00015531,2]
[399076454,1766103934946,-57.6356915,0.00015531,2]
[399076455,1766103934988,-151.0,0.00015531,2]
[399076456,1766103935036,-151.0,0.00015531,2]
[399076457,1766103935082,-151.0,0.00015531,2]
[399076458,1766103935124,-223.043096,0.00015531,2]
[399076459,1766103935167,-223.043096,0.00015531,2]
[399076460,1766103935211,-223.043096,0.00015531,2]
[399076461,1766103935258,-223.043096,0.00015531,2]
[399076462,1766103935299,-1307.408472,0.00015531,2]
[399076463,1766103935342,-1307.408472,0.00015531,2]
[399076464,1766103935387,-657.351489,0.00015531,2]
[399076465,1766103935577,-650.056983,0.00015531,2]
[399076466,1766103935622,-1307.408472,0.00015531,2]
[399076467,1766103935663,-153.150029,0.00015531,2]
[399076468,1766103935705,-151.0,0.00015531,2]
[399076469,1766103935749,-155.608728,0.00015531,2]
[399076470,1766103935792,-206.951539,0.00015531,2]
[399076471,1766103935835,-206.951539,0.00015531,2]
[399076472,1766103935880,-206.951539,0.00015531,2]
[399076473,1766103935924,-206.951539,0.00015531,2]
[399076474,1766103935968,-380.14771,0.00015531,2]
[399076475,1766103936014,-380.14771,0.00015531,2]
[399076476,1766103936058,-380.14771,0.00015531,2]
[399076477,1766103936102,-380.14771,0.00015531,2]
[399076479,1766103937443,-171.16217679,0.00015619,2]
[399076480,1766103938527,-181.99247478,0.00015619,2]
[399076481,1766103940081,-146.84534843,0.00015619,2]
[399076482,1766103940115,-114.94550722,0.00015619,2]
[399076483,1766103942120,-42.67717828,0.00015619,2]
[399076484,1766103942146,-248.95930373,0.0001562,2]
[399076486,1766103944690,-33.29720423,0.0001562,2]
[399076487,1766103944720,-250.88306715,0.0001562,2]
[399076488,1766103946199,-394.61911916,0.0001562,2]
[399076489,1766103946229,-415.83752094,0.0001562,2]
[399076490,1766103950789,-84.16247906,0.0001562,2]
[399076491,1766103950814,-146.75326393,0.0001562,2]
[399076492,1766103954514,-161.70359702,0.0001562,2]
[399076502,1766103972959,468.767584,0.0001543,2]
[399076503,1766103973002,10000.01,0.0001543,2]
[399076504,1766103973046,10000.01,0.0001543,2]
[399076505,1766103973099,10000.01,0.0001543,2]
[399076506,1766103973144,10000.01,0.0001543,2]
[399076507,1766103973187,10000.01,0.0001543,2]
[399076508,1766103973233,10000.01,0.0001543,2]
[399076509,1766103973275,10000.01,0.0001543,2]
[399076510,1766103973315,10000.01,0.0001543,2]
[399076511,1766103973352,10000.01,0.0001543,2]
[399076512,1766103973931,-274.57912838,0.0001543,2]
[399076513,1766103980985,-9531.242416,0.0001543,2]
[399076514,1766103981363,-10000.01,0.0001543,2]
[399076515,1766103983288,-10000.01,0.0001543,2]
[399076516,1766103983696,-10000.01,0.0001543,2]
[399076517,1766103984057,-10000.01,0.0001543,2]
[399076518,1766103984355,-10000.01,0.0001543,2]
[399076519,1766103984753,-10000.01,0.0001543,2]
[399076520,1766103985043,-10000.01,0.0001543,2]
[399076521,1766103985340,-10000.01,0.0001543,2]
[399076522,1766103985606,-10000.01,0.0001543,2]
[399076523,1766103988985,-10000.01,0.0001543,2]
[399076524,1766103989010,-10000.01,0.0001543,2]
[399076525,1766103992238,-10000.01,0.0001543,2]
[399076526,1766103992532,-460.33587985,0.00015429,2]
[399076527,1766103992645,-9079.3382403,0.0001543,2]
[399076528,1766103993084,-10000.01,0.0001543,2]
[399076529,1766103993125,-10000.01,0.0001543,2]
[399076530,1766103993160,-10000.01,0.0001543,2]
[399076531,1766103995014,-225.6277149,0.00015429,2]
[399076532,1766103995093,-9548.7545702,0.0001543,2]
[399076533,1766103995151,-10000.01,0.0001543,2]
[399076536,1766103998317,-10000.01,0.0001543,2]
[399076538,1766103998495,-10000.01,0.0001543,2]
[399076539,1766103998634,-10000.01,0.0001543,2]
[399076540,1766103998790,-10000.01,0.0001543,2]
[399076543,1766104000513,-10000.01,0.0001543,2]
[399076579,1766104066057,150.0,0.00022,30]
[399076790,1766104232410,-546.91,0.00014797,2]
[399076791,1766104232421,-273.0,0.00014797,2]
[399076792,1766104232431,-150.0,0.00014911,2]
[399076793,1766104232441,-195.0,0.0001512,2]
[399076794,1766104232460,-300.0,0.0001512,2]
[399076795,1766104232471,-1496.93460859,0.00015121,2]
[399076796,1766104232480,-166.66,0.00015256,2]
[399076797,1766104232491,-500.0,0.00015315,2]
[399076798,1766104232502,-1200.0,0.00015329,2]
[399076799,1766104232512,-300.0,0.00015329,2]
[399076800,1766104232523,-300.0,0.00015329,2]
[399076801,1766104232533,-1422.19740844,0.0001533,2]
[399076802,1766104232543,-445.94821303,0.0001533,2]
[399076803,1766104232553,-9104.78022336,0.0001533,2]
[399076804,1766104232563,-203.77230881,0.00015356,2]
[399076805,1766104232574,-500.0,0.00015429,2]
[399076806,1766104232585,-462.93220917,0.00015429,2]
[399076807,1766104232596,-500.0,0.00015429,2]
[399076808,1766104232606,-63044.99110302,0.0001543,2]
[399076809,1766104232619,-1135.57030507,0.0001543,2]
[399076810,1766104232644,-257.034,0.0001543,2]
[399076811,1766104232656,-16490.15724132,0.0001543,2]
[399076812,1766104232668,-254.45,0.0001543,2]
[399076813,1766104232680,-2940.91019309,0.0001543,2]
[399076855,1766104238866,-12663.47525058,0.0001543,2]
[399076856,1766104238878,-1487.6320234,0.0001543,2]
[399076857,1766104238891,-652.87379032,0.0001543,2]
[399076858,1766104238909,-418146.72864383,0.0001543,2]
[399076859,1766104240210,-42023.19551049,0.0001543,2]
[399076860,1766104240221,-1000.0,0.0001543,2]
[399076861,1766104240232,-2500.0,0.0001543,2]
[399076862,1766104240242,-1221.4988,0.0001543,2]
[399076863,1766104240252,-300.0,0.0001562,2]
[399076864,1766104240265,-191.54313905,0.0001562,2]
[399076865,1766104240275,-500.0,0.0001562,2]
[399076866,1766104240286,-500.0,0.0001562,2]
[399076867,1766104240295,-500.0,0.0001562,2]
[399076868,1766104240306,-500.0,0.0001562,2]
[399076869,1766104240316,-1045.04078414,0.00015624,2]
[399076870,1766104240327,-151.0,0.00015631,2]
[399076871,1766104240337,-151.0,0.00015631,2]
[399076872,1766104240346,-300.0,0.00015638,2]
[399076873,1766104240355,-1000.0,0.00015685,2]
[399076874,1766104240365,-1000.0,0.00015685,2]
[399076875,1766104240374,-668.442,0.00015685,2]
[399076876,1766104240383,-890.0,0.0001569,2]
[399076877,1766104240393,-1359.0,0.00015722,2]
[399076878,1766104240403,-500.0,0.00015731,2]
[399076879,1766104240411,-500.0,0.00015731,2]
[399076880,1766104240421,-500.0,0.00015731,2]
[399076881,1766104240430,-500.0,0.00015731,2]
[399076882,1766104240439,-500.0,0.00015731,2]
[399076883,1766104240449,-500.0,0.00015731,2]
[399076884,1766104240458,-500.0,0.00015731,2]
[399076885,1766104240467,-500.0,0.00015731,2]
[399076886,1766104240477,-500.0,0.00015731,2]
[399076887,1766104240486,-574.12855637,0.00015731,2]
[399076888,1766104240496,-500.0,0.00015731,2]
[399076889,1766104240505,-200.0,0.00015731,2]
[399076890,1766104240514,-500.0,0.00015731,2]
[399076891,1766104240524,-500.0,0.00015731,2]
[399076892,1766104240533,-500.0,0.00015731,2]
[399076893,1766104240542,-500.0,0.00015731,2]
[399076894,1766104240551,-500.0,0.00015731,2]
[399076895,1766104240561,-300.0,0.00015731,2]
[399076896,1766104240570,-500.0,0.00015731,2]
[399076897,1766104240580,-500.0,0.00015731,2]
[399076898,1766104240589,-500.0,0.00015731,2]
[399076899,1766104240598,-500.0,0.00015731,2]
[399076900,1766104240608,-500.0,0.00015731,2]
[399076901,1766104240617,-500.0,0.00015731,2]
[399076903,1766104240626,-500.0,0.00015731,2]
[399076905,1766104240635,-500.0,0.00015731,2]
[399076907,1766104240644,-250.0,0.00015731,2]
[399076909,1766104240654,-500.0,0.00015731,2]
[399076910,1766104240663,-500.0,0.00015731,2]
[399076911,1766104240672,-250.0,0.00015731,2]
[399076912,1766104240681,-500.0,0.00015731,2]